[Event "GrandPrix_29.05"]
[Site "Chess.com"]
[Date "2020.05.29"]
[Round "4"]
[White "A_N_D-R_E_I"]
[Black "EvgenyRomanov"]
[Result "1/2-1/2"]
[WhiteElo "2039"]
[BlackElo "1895"]
[TimeControl "600+2"]
[EndTime "11:03:53 PDT"]
[Termination "Game drawn - insufficient material"]

1. e4 {[%clk 0:10:01.9]} 1... c6 {[%clk 0:09:58.3]} 2. d4 {[%clk 0:10:02.4]}
2... d5 {[%clk 0:09:58.8]} 3. Nd2 {[%clk 0:10:04.3]} 3... dxe4 {[%clk
0:09:57.9]} 4. Nxe4 {[%clk 0:10:06.2]} 4... Nf6 {[%clk 0:09:58.3]} 5. Nxf6+
{[%clk 0:10:07.2]} 5... exf6 {[%clk 0:09:58.6]} 6. c3 {[%clk 0:10:05.6]} 6...
Bd6 {[%clk 0:09:57.6]} 7. Bd3 {[%clk 0:10:05.8]} 7... Qc7 {[%clk 0:09:42.5]} 8.
Ne2 {[%clk 0:10:04.8]} 8... h5 {[%clk 0:09:39.5]} 9. h3 {[%clk 0:10:04.3]} 9...
Nd7 {[%clk 0:09:33.8]} 10. Qc2 {[%clk 0:10:03.4]} 10... Nf8 {[%clk 0:09:08.4]}
11. Be3 {[%clk 0:09:56.7]} 11... Be6 {[%clk 0:08:48.8]} 12. c4 {[%clk
0:09:54.8]} 12... Bd7 {[%clk 0:07:55.1]} 13. O-O-O {[%clk 0:09:44.4]} 13... Ne6
{[%clk 0:07:44.3]} 14. g3 {[%clk 0:09:25.4]} 14... O-O-O {[%clk 0:07:32.2]} 15.
Nc3 {[%clk 0:09:17.6]} 15... h4 {[%clk 0:07:16.8]} 16. c5 {[%clk 0:08:23.3]}
16... Bf8 {[%clk 0:07:00.6]} 17. g4 {[%clk 0:08:04.3]} 17... Nf4 {[%clk
0:06:39.8]} 18. Be4 {[%clk 0:08:04]} 18... Be6 {[%clk 0:06:25.9]} 19. Kb1 {[%clk
0:07:48]} 19... Nd5 {[%clk 0:05:47.7]} 20. Bc1 {[%clk 0:06:27.3]} 20... g6
{[%clk 0:05:42.2]} 21. Rhf1 {[%clk 0:06:02.2]} 21... Bg7 {[%clk 0:05:37.8]} 22.
f4 {[%clk 0:05:55.9]} 22... Qa5 {[%clk 0:04:12.6]} 23. a3 {[%clk 0:04:48.5]}
23... Rhe8 {[%clk 0:03:58.6]} 24. Rfe1 {[%clk 0:04:06.8]} 24... Nxc3+ {[%clk
0:02:56.2]} 25. Qxc3 {[%clk 0:03:55.1]} 25... Qxc3 {[%clk 0:02:53.5]} 26. bxc3
{[%clk 0:03:57]} 26... Bb3 {[%clk 0:02:47.2]} 27. Rd2 {[%clk 0:03:50.6]} 27...
Rd7 {[%clk 0:02:20.7]} 28. Rde2 {[%clk 0:03:34.8]} 28... Kd8 {[%clk 0:01:13.9]}
29. Bf3 {[%clk 0:02:39.3]} 29... Rxe2 {[%clk 0:01:11.8]} 30. Rxe2 {[%clk
0:02:38.7]} 30... Bc4 {[%clk 0:01:06.1]} 31. Re1 {[%clk 0:02:28.1]} 31... f5
{[%clk 0:01:05.3]} 32. gxf5 {[%clk 0:02:10.7]} 32... Bd3+ {[%clk 0:01:05.7]} 33.
Kb2 {[%clk 0:02:08.4]} 33... Bxf5 {[%clk 0:01:07.6]} 34. Bg4 {[%clk 0:02:07.6]}
34... Rd5 {[%clk 0:00:26.1]} 35. Be3 {[%clk 0:01:53.4]} 35... Bf6 {[%clk
0:00:11.2]} 36. Kb3 {[%clk 0:01:47.1]} 36... Be7 {[%clk 0:00:12.1]} 37. c4
{[%clk 0:01:22.7]} 37... Rd7 {[%clk 0:00:11.9]} 38. Bxf5 {[%clk 0:01:23.5]}
38... gxf5 {[%clk 0:00:13.6]} 39. Rd1 {[%clk 0:01:18.4]} 39... Bf6 {[%clk
0:00:11.8]} 40. d5 {[%clk 0:01:10.2]} 40... cxd5 {[%clk 0:00:12.9]} 41. cxd5
{[%clk 0:01:07]} 41... Re7 {[%clk 0:00:14.8]} 42. Rd3 {[%clk 0:01:07.8]} 42...
Re4 {[%clk 0:00:15.3]} 43. Kc2 {[%clk 0:00:29.4]} 43... Kd7 {[%clk 0:00:15.7]}
44. Kd2 {[%clk 0:00:29.1]} 44... Ra4 {[%clk 0:00:15.8]} 45. Kc2 {[%clk
0:00:25.5]} 45... Kc7 {[%clk 0:00:16.1]} 46. Kb3 {[%clk 0:00:21.6]} 46... Re4
{[%clk 0:00:16.7]} 47. Kc2 {[%clk 0:00:23.1]} 47... Bg7 {[%clk 0:00:16]} 48. Bd2
{[%clk 0:00:18.6]} 48... Bf6 {[%clk 0:00:16.6]} 49. Be3 {[%clk 0:00:19.1]} 49...
Kd7 {[%clk 0:00:16.4]} 50. Kd2 {[%clk 0:00:19.2]} 50... Rc4 {[%clk 0:00:16.9]}
51. Rb3 {[%clk 0:00:13.9]} 51... Kc7 {[%clk 0:00:17.4]} 52. Kd3 {[%clk 0:00:15]}
52... Ra4 {[%clk 0:00:17.4]} 53. d6+ {[%clk 0:00:10]} 53... Kc6 {[%clk
0:00:18.3]} 54. d7 {[%clk 0:00:11.1]} 54... Bd8 {[%clk 0:00:15.3]} 55. Bd4
{[%clk 0:00:10.3]} 55... f6 {[%clk 0:00:13.8]} 56. Be3 {[%clk 0:00:07.2]} 56...
Re4 {[%clk 0:00:14.2]} 57. Rb2 {[%clk 0:00:06.7]} 57... Re7 {[%clk 0:00:14.6]}
58. Ke2 {[%clk 0:00:07.4]} 58... Rxd7 {[%clk 0:00:16.5]} 59. Kf3 {[%clk
0:00:08.7]} 59... Be7 {[%clk 0:00:17.4]} 60. Rc2 {[%clk 0:00:09]} 60... Rd3
{[%clk 0:00:13.8]} 61. a4 {[%clk 0:00:09.7]} 61... Kd5 {[%clk 0:00:13.7]} 62.
Ke2 {[%clk 0:00:11]} 62... Ra3 {[%clk 0:00:14.6]} 63. Rd2+ {[%clk 0:00:10.9]}
63... Kc6 {[%clk 0:00:15.4]} 64. Bf2 {[%clk 0:00:09.6]} 64... Rxa4 {[%clk
0:00:16.1]} 65. Bxh4 {[%clk 0:00:09.7]} 65... Rxf4 {[%clk 0:00:16.7]} 66. Bg3
{[%clk 0:00:10.8]} 66... Re4+ {[%clk 0:00:18.3]} 67. Kf3 {[%clk 0:00:12.2]}
67... Rc4 {[%clk 0:00:18.6]} 68. Re2 {[%clk 0:00:12.5]} 68... Bxc5 {[%clk
0:00:18.9]} 69. Re6+ {[%clk 0:00:14]} 69... Kd5 {[%clk 0:00:19.9]} 70. Rxf6
{[%clk 0:00:14.9]} 70... Rc3+ {[%clk 0:00:21]} 71. Kg2 {[%clk 0:00:15.3]} 71...
Rc2+ {[%clk 0:00:21.7]} 72. Kf3 {[%clk 0:00:16.3]} 72... Rc3+ {[%clk 0:00:23.1]}
73. Kg2 {[%clk 0:00:17.3]} 73... Ke4 {[%clk 0:00:23.7]} 74. Re6+ {[%clk
0:00:18.3]} 74... Kd3 {[%clk 0:00:23.3]} 75. Re5 {[%clk 0:00:16.5]} 75... Bd4
{[%clk 0:00:23.6]} 76. Rxf5 {[%clk 0:00:17.3]} 76... Ke2 {[%clk 0:00:22.5]} 77.
Rf7 {[%clk 0:00:15.7]} 77... b5 {[%clk 0:00:22.6]} 78. Rd7 {[%clk 0:00:14.9]}
78... Be3 {[%clk 0:00:22.8]} 79. Rb7 {[%clk 0:00:12.5]} 79... a6 {[%clk
0:00:21.1]} 80. h4 {[%clk 0:00:12.5]} 80... Rc5 {[%clk 0:00:21.8]} 81. Re7
{[%clk 0:00:11.6]} 81... Rc3 {[%clk 0:00:19]} 82. Re6 {[%clk 0:00:10.2]} 82...
a5 {[%clk 0:00:19.3]} 83. Re5 {[%clk 0:00:11.4]} 83... Rb3 {[%clk 0:00:19.7]}
84. h5 {[%clk 0:00:12.6]} 84... a4 {[%clk 0:00:20.3]} 85. h6 {[%clk 0:00:14]}
85... a3 {[%clk 0:00:21.4]} 86. h7 {[%clk 0:00:15.3]} 86... a2 {[%clk
0:00:22.6]} 87. h8=Q {[%clk 0:00:16.1]} 87... a1=Q {[%clk 0:00:22.5]} 88. Qh5+
{[%clk 0:00:17.4]} 88... Kd2 {[%clk 0:00:18.9]} 89. Rd5+ {[%clk 0:00:16.8]}
89... Rd3 {[%clk 0:00:18.2]} 90. Rxd3+ {[%clk 0:00:12.2]} 90... Kxd3 {[%clk
0:00:18.8]} 91. Qxb5+ {[%clk 0:00:13.6]} 91... Ke4 {[%clk 0:00:18.6]} 92. Qe8+
{[%clk 0:00:13.2]} 92... Kd3 {[%clk 0:00:19.3]} 93. Qg6+ {[%clk 0:00:12.1]}
93... Kd2 {[%clk 0:00:17.2]} 94. Qd6+ {[%clk 0:00:10.3]} 94... Qd4 {[%clk
0:00:17.9]} 95. Qxd4+ {[%clk 0:00:07.1]} 95... Bxd4 {[%clk 0:00:19.8]} 1/2-1/2

[Event "GrandPrix_29.05"]
[Site "Chess.com"]
[Date "2020.05.29"]
[Round "4"]
[White "Ward-Tsh"]
[Black "LazovT"]
[Result "1/2-1/2"]
[WhiteElo "2175"]
[BlackElo "2103"]
[TimeControl "600+2"]
[EndTime "11:04:02 PDT"]
[Termination "Game drawn - insufficient material"]

1. e4 {[%clk 0:10:01.9]} 1... c5 {[%clk 0:09:54.4]} 2. Nf3 {[%clk 0:10:02.9]}
2... d6 {[%clk 0:09:53]} 3. d4 {[%clk 0:10:03.4]} 3... Nf6 {[%clk 0:09:54.5]} 4.
Nc3 {[%clk 0:10:04.1]} 4... cxd4 {[%clk 0:09:55.6]} 5. Nxd4 {[%clk 0:10:05.8]}
5... a6 {[%clk 0:09:56.4]} 6. h3 {[%clk 0:10:06.7]} 6... e5 {[%clk 0:09:56.4]}
7. Nde2 {[%clk 0:10:07.3]} 7... b5 {[%clk 0:09:56.2]} 8. g4 {[%clk 0:10:05.2]}
8... b4 {[%clk 0:09:57.5]} 9. Nd5 {[%clk 0:10:05.9]} 9... Nxd5 {[%clk
0:09:58.6]} 10. Qxd5 {[%clk 0:10:01.5]} 10... Ra7 {[%clk 0:09:59.5]} 11. Be3
{[%clk 0:09:56.7]} 11... Be6 {[%clk 0:10:01]} 12. Qd3 {[%clk 0:09:50.2]} 12...
Rb7 {[%clk 0:09:40.7]} 13. Bg2 {[%clk 0:09:48.6]} 13... Be7 {[%clk 0:09:39]} 14.
O-O {[%clk 0:09:48.8]} 14... h5 {[%clk 0:09:40]} 15. f4 {[%clk 0:09:43.1]} 15...
hxg4 {[%clk 0:09:20.2]} 16. f5 {[%clk 0:09:34.7]} 16... Bd7 {[%clk 0:09:06.7]}
17. hxg4 {[%clk 0:09:30.3]} 17... Bb5 {[%clk 0:07:49.9]} 18. Qd2 {[%clk
0:09:26.2]} 18... Bxe2 {[%clk 0:07:34.2]} 19. Qxe2 {[%clk 0:09:25.9]} 19... Bg5
{[%clk 0:07:35.8]} 20. Rf3 {[%clk 0:09:00.3]} 20... Bxe3+ {[%clk 0:07:32.2]} 21.
Qxe3 {[%clk 0:09:01.4]} 21... Qb6 {[%clk 0:06:31.1]} 22. Rd1 {[%clk 0:08:57.1]}
22... Rh4 {[%clk 0:06:06.5]} 23. Qxb6 {[%clk 0:08:24.9]} 23... Rxb6 {[%clk
0:06:08.4]} 24. Rfd3 {[%clk 0:08:26.1]} 24... Ke7 {[%clk 0:06:02.8]} 25. g5
{[%clk 0:08:03.2]} 25... Nd7 {[%clk 0:05:54.7]} 26. Bf3 {[%clk 0:07:52.2]} 26...
Nc5 {[%clk 0:05:32.3]} 27. Re3 {[%clk 0:07:52.3]} 27... Na4 {[%clk 0:05:15.3]}
28. Rb3 {[%clk 0:07:52.6]} 28... a5 {[%clk 0:04:51.3]} 29. Kg2 {[%clk
0:07:52.3]} 29... Nc5 {[%clk 0:04:45.3]} 30. Re3 {[%clk 0:07:51.5]} 30... Rb8
{[%clk 0:04:44.1]} 31. f6+ {[%clk 0:07:16.5]} 31... gxf6 {[%clk 0:04:46]} 32.
gxf6+ {[%clk 0:07:18.4]} 32... Kxf6 {[%clk 0:03:28.4]} 33. Kg3 {[%clk
0:07:17.6]} 33... Kg5 {[%clk 0:02:03.9]} 34. Rxd6 {[%clk 0:06:49.4]} 34... Ne6
{[%clk 0:01:44.1]} 35. Re1 {[%clk 0:06:00.9]} 35... Rbh8 {[%clk 0:00:28]} 36.
Rg1 {[%clk 0:06:00.8]} 36... Rh2 {[%clk 0:00:29]} 37. Bg2 {[%clk 0:05:06]} 37...
Nd4 {[%clk 0:00:22.8]} 38. Kf2 {[%clk 0:04:31]} 38... f5 {[%clk 0:00:05.5]} 39.
exf5 {[%clk 0:03:53.3]} 39... Nxf5 {[%clk 0:00:07.4]} 40. Rd5 {[%clk 0:03:11.3]}
40... Kf4 {[%clk 0:00:08.1]} 41. Re1 {[%clk 0:03:12]} 41... Nh4 {[%clk
0:00:03.1]} 42. Re4+ {[%clk 0:03:08.6]} 42... Kf5 {[%clk 0:00:03.9]} 43. Rexe5+
{[%clk 0:02:51.9]} 43... Kf6 {[%clk 0:00:05.4]} 44. Rg5 {[%clk 0:02:52]} 44...
Nxg2 {[%clk 0:00:04.4]} 45. Rxg2 {[%clk 0:02:53.9]} 45... Rxg2+ {[%clk
0:00:05.9]} 46. Kxg2 {[%clk 0:02:55.7]} 46... Rc8 {[%clk 0:00:07.3]} 47. Rd2
{[%clk 0:02:50.9]} 47... Kf5 {[%clk 0:00:08.8]} 48. Kf3 {[%clk 0:02:50.4]} 48...
Ke5 {[%clk 0:00:10]} 49. Ke3 {[%clk 0:02:51.2]} 49... Rg8 {[%clk 0:00:11]} 50.
Rh2 {[%clk 0:02:36.3]} 50... Rg3+ {[%clk 0:00:10.9]} 51. Kd2 {[%clk 0:02:33.5]}
51... Rg5 {[%clk 0:00:09.7]} 52. c4 {[%clk 0:02:23.2]} 52... Kd4 {[%clk
0:00:06.3]} 53. b3 {[%clk 0:02:08.6]} 53... Rg4 {[%clk 0:00:04.1]} 54. Kc2
{[%clk 0:02:02.5]} 54... a4 {[%clk 0:00:04.9]} 55. Rd2+ {[%clk 0:02:03.2]} 55...
Kc5 {[%clk 0:00:05.7]} 56. Rd5+ {[%clk 0:02:02.7]} 56... Kc6 {[%clk 0:00:07.2]}
57. Rb5 {[%clk 0:01:42.3]} 57... Rg2+ {[%clk 0:00:07.7]} 58. Kb1 {[%clk
0:01:21.9]} 58... Rg1+ {[%clk 0:00:08.6]} 59. Kc2 {[%clk 0:01:21.9]} 59... Rg2+
{[%clk 0:00:10.5]} 60. Kd3 {[%clk 0:01:21.3]} 60... Rxa2 {[%clk 0:00:11.4]} 61.
Rxb4 {[%clk 0:01:21.7]} 61... axb3 {[%clk 0:00:12.6]} 62. Rxb3 {[%clk
0:01:23.6]} 62... Rh2 {[%clk 0:00:13.4]} 63. Rb8 {[%clk 0:01:18.5]} 63... Rh3+
{[%clk 0:00:14.3]} 64. Kd4 {[%clk 0:01:18.9]} 64... Rh4+ {[%clk 0:00:15.8]} 65.
Kc3 {[%clk 0:01:20.1]} 65... Rh3+ {[%clk 0:00:17.2]} 66. Kb4 {[%clk 0:01:21.4]}
66... Rh1 {[%clk 0:00:18.2]} 67. Rc8+ {[%clk 0:01:22.3]} 67... Kb6 {[%clk
0:00:19.5]} 68. Rg8 {[%clk 0:01:03.7]} 68... Rb1+ {[%clk 0:00:19.9]} 69. Kc3
{[%clk 0:01:04.6]} 69... Kc5 {[%clk 0:00:21.1]} 70. Rc8+ {[%clk 0:00:58.1]}
70... Kd6 {[%clk 0:00:21.7]} 71. Rd8+ {[%clk 0:00:57.8]} 71... Kc5 {[%clk
0:00:20.9]} 72. Rd5+ {[%clk 0:00:47.3]} 72... Kc6 {[%clk 0:00:21.6]} 73. Rh5
{[%clk 0:00:39]} 73... Rg1 {[%clk 0:00:19.5]} 74. Kd3 {[%clk 0:00:31.6]} 74...
Rd1+ {[%clk 0:00:19.4]} 75. Kc2 {[%clk 0:00:30.2]} 75... Rg1 {[%clk 0:00:20.3]}
76. Rf5 {[%clk 0:00:21.6]} 76... Rh1 {[%clk 0:00:20.4]} 77. Ra5 {[%clk 0:00:19]}
77... Rh2+ {[%clk 0:00:17.7]} 78. Kc3 {[%clk 0:00:18.7]} 78... Rh1 {[%clk
0:00:19.6]} 79. Ra6+ {[%clk 0:00:18.5]} 79... Kc5 {[%clk 0:00:20.5]} 80. Ra5+
{[%clk 0:00:18.8]} 80... Kc6 {[%clk 0:00:21.7]} 81. Rg5 {[%clk 0:00:18.4]} 81...
Rc1+ {[%clk 0:00:21.1]} 82. Kb3 {[%clk 0:00:19.2]} 82... Rb1+ {[%clk 0:00:22.1]}
83. Kc2 {[%clk 0:00:20.1]} 83... Rh1 {[%clk 0:00:22.9]} 84. Rg8 {[%clk
0:00:17.4]} 84... Kc5 {[%clk 0:00:21.7]} 85. Rc8+ {[%clk 0:00:18.1]} 85... Kd4
{[%clk 0:00:13.4]} 86. Kb3 {[%clk 0:00:09.3]} 86... Rb1+ {[%clk 0:00:14.3]} 87.
Ka4 {[%clk 0:00:09.3]} 87... Rc1 {[%clk 0:00:15.4]} 88. Kb5 {[%clk 0:00:07.1]}
88... Rb1+ {[%clk 0:00:16.6]} 89. Ka5 {[%clk 0:00:06.3]} 89... Ra1+ {[%clk
0:00:16.6]} 90. Kb4 {[%clk 0:00:05.4]} 90... Rb1+ {[%clk 0:00:17.3]} 91. Ka3
{[%clk 0:00:06.1]} 91... Rc1 {[%clk 0:00:15.7]} 92. Kb3 {[%clk 0:00:06.5]} 92...
Rb1+ {[%clk 0:00:16.8]} 93. Kc2 {[%clk 0:00:07.5]} 93... Rb4 {[%clk 0:00:15.8]}
94. c5 {[%clk 0:00:08.3]} 94... Rc4+ {[%clk 0:00:16.3]} 95. Kd2 {[%clk
0:00:07.6]} 95... Rxc5 {[%clk 0:00:18.2]} 96. Rxc5 {[%clk 0:00:08.7]} 96... Kxc5
{[%clk 0:00:20.1]} 1/2-1/2

[Event "GrandPrix_29.05"]
[Site "Chess.com"]
[Date "2020.05.29"]
[Round "4"]
[White "AnotherGrumpy"]
[Black "chess_big_master"]
[Result "0-1"]
[WhiteElo "1667"]
[BlackElo "2044"]
[TimeControl "600+2"]
[EndTime "11:04:07 PDT"]
[Termination "chess_big_master won by resignation"]

1. d4 {[%clk 0:10:00.7]} 1... d5 {[%clk 0:10:00.4]} 2. c4 {[%clk 0:09:51]} 2...
e6 {[%clk 0:10:00.5]} 3. Nf3 {[%clk 0:09:51.4]} 3... Nf6 {[%clk 0:10:00.4]} 4.
Nc3 {[%clk 0:09:48.7]} 4... Bb4 {[%clk 0:10:00.9]} 5. Bg5 {[%clk 0:09:43.8]}
5... dxc4 {[%clk 0:09:59.5]} 6. e4 {[%clk 0:09:43.7]} 6... c5 {[%clk 0:10:00.1]}
7. Bxc4 {[%clk 0:09:39.3]} 7... cxd4 {[%clk 0:10:01]} 8. Nxd4 {[%clk 0:09:39.7]}
8... Qa5 {[%clk 0:09:59.1]} 9. Bxf6 {[%clk 0:09:39.3]} 9... Bxc3+ {[%clk
0:09:57.9]} 10. bxc3 {[%clk 0:09:41.2]} 10... Qxc3+ {[%clk 0:09:58.8]} 11. Kf1
{[%clk 0:09:42]} 11... gxf6 {[%clk 0:10:00.1]} 12. Rc1 {[%clk 0:09:41.9]} 12...
Qa5 {[%clk 0:10:01.2]} 13. h4 {[%clk 0:09:34]} 13... Ke7 {[%clk 0:10:00.1]} 14.
Rh3 {[%clk 0:09:29.7]} 14... Rd8 {[%clk 0:10:00.2]} 15. Rd3 {[%clk 0:09:30.3]}
15... Nc6 {[%clk 0:10:00.6]} 16. Bb3 {[%clk 0:08:51.2]} 16... Bd7 {[%clk
0:09:38.4]} 17. Kg1 {[%clk 0:08:34.3]} 17... Nxd4 {[%clk 0:09:11.2]} 18. Rxd4
{[%clk 0:08:32.4]} 18... Bc6 {[%clk 0:09:11.8]} 19. Rxd8 {[%clk 0:07:17.3]}
19... Rxd8 {[%clk 0:09:11.7]} 20. Qf3 {[%clk 0:07:19.2]} 20... Qe5 {[%clk
0:07:32.4]} 21. Re1 {[%clk 0:07:05.3]} 21... f5 {[%clk 0:06:24.9]} 22. Qh5
{[%clk 0:06:57.3]} 22... Bxe4 {[%clk 0:06:10.4]} 23. Qg5+ {[%clk 0:05:56.6]}
23... Qf6 {[%clk 0:05:59]} 24. Qc1 {[%clk 0:05:54.3]} 24... Kf8 {[%clk
0:04:50.5]} 25. Re3 {[%clk 0:05:29.7]} 25... Bc6 {[%clk 0:03:54.9]} 26. Rg3
{[%clk 0:05:18.8]} 26... Qxh4 {[%clk 0:02:35]} 27. Qc5+ {[%clk 0:04:33.3]} 27...
Ke8 {[%clk 0:02:34.9]} 28. Qxa7 {[%clk 0:04:34.3]} 28... Qd4 {[%clk 0:01:56.6]}
29. Qa3 {[%clk 0:04:23.9]} 29... Qa1+ {[%clk 0:01:42.7]} 30. Kh2 {[%clk
0:04:23.1]} 30... Qe5 {[%clk 0:01:44]} 31. Qb4 {[%clk 0:04:00.3]} 31... Rd4
{[%clk 0:01:14]} 32. Qc3 {[%clk 0:03:16.4]} 32... Rh4+ {[%clk 0:01:11.8]} 33.
Kg1 {[%clk 0:03:17.8]} 33... Qxc3 {[%clk 0:00:57.4]} 34. Rxc3 {[%clk 0:03:19.7]}
34... Rg4 {[%clk 0:00:56.2]} 35. f3 {[%clk 0:03:17.5]} 35... Rd4 {[%clk
0:00:52.4]} 36. Rc2 {[%clk 0:03:02]} 36... Ke7 {[%clk 0:00:51.2]} 37. Kf2 {[%clk
0:02:56.4]} 37... f4 {[%clk 0:00:50.7]} 38. Re2 {[%clk 0:02:46.9]} 38... Kf6
{[%clk 0:00:46.3]} 39. Rb2 {[%clk 0:02:34.3]} 39... h5 {[%clk 0:00:36.9]} 40.
Kg1 {[%clk 0:02:30.1]} 40... Kg5 {[%clk 0:00:18.4]} 41. Kh2 {[%clk 0:02:30.3]}
41... Rd7 {[%clk 0:00:18.4]} 42. Re2 {[%clk 0:02:30.1]} 42... Kf6 {[%clk
0:00:18.6]} 43. Rc2 {[%clk 0:02:28.3]} 43... Bd5 {[%clk 0:00:18.1]} 44. Ba4
{[%clk 0:02:27.9]} 44... Rd8 {[%clk 0:00:17]} 45. Rc7 {[%clk 0:02:14.3]} 45...
Rd6 {[%clk 0:00:16.1]} 46. Be8 {[%clk 0:02:12.3]} 46... Ra6 {[%clk 0:00:11.7]}
47. Rxf7+ {[%clk 0:02:12.7]} 47... Ke5 {[%clk 0:00:12.7]} 48. a4 {[%clk
0:02:11.9]} 48... Bb3 {[%clk 0:00:09.4]} 49. Rxb7 {[%clk 0:02:05.3]} 49... Bxa4
{[%clk 0:00:07.3]} 50. Bxh5 {[%clk 0:02:06.3]} 50... Bc6 {[%clk 0:00:05.9]} 51.
Rg7 {[%clk 0:02:02.5]} 51... Ra2 {[%clk 0:00:04.7]} 52. Rg5+ {[%clk 0:01:59]}
52... Kd4 {[%clk 0:00:05.8]} 53. Bf7 {[%clk 0:01:56.5]} 53... Bd5 {[%clk
0:00:06.9]} 54. Kh3 {[%clk 0:01:52]} 54... Re2 {[%clk 0:00:07.3]} 55. Rg8 {[%clk
0:01:28.5]} 55... Ke3 {[%clk 0:00:08.1]} 56. Rb8 {[%clk 0:01:14.7]} 56... Kf2
{[%clk 0:00:08.5]} 57. Rb4 {[%clk 0:01:11.7]} 57... Ke3 {[%clk 0:00:06.2]} 58.
Bg6 {[%clk 0:00:57.2]} 58... Re1 {[%clk 0:00:06]} 59. Be4 {[%clk 0:00:40.3]}
59... Kf2 {[%clk 0:00:03.9]} 60. Rb2+ {[%clk 0:00:37.3]} 60... Ke3 {[%clk
0:00:03.5]} 61. Bg6 {[%clk 0:00:30.2]} 61... Rh1+ {[%clk 0:00:04.1]} 62. Kg4
{[%clk 0:00:31.2]} 62... Rh8 {[%clk 0:00:05.3]} 63. Rb1 {[%clk 0:00:20.1]} 63...
Rg8 {[%clk 0:00:06.2]} 64. Kg5 {[%clk 0:00:21.2]} 64... Kf2 {[%clk 0:00:06.3]}
65. Rb2+ {[%clk 0:00:21.5]} 65... Kg3 {[%clk 0:00:07.5]} 66. Kf6 {[%clk
0:00:22.1]} 66... Bc4 {[%clk 0:00:05]} 67. Bf7 {[%clk 0:00:21]} 67... Rh8 {[%clk
0:00:04.8]} 68. Rc2 {[%clk 0:00:19.2]} 68... Bf1 {[%clk 0:00:05.5]} 69. Bxe6
{[%clk 0:00:18.6]} 69... Bxg2 {[%clk 0:00:06.6]} 70. Bd5 {[%clk 0:00:19.5]}
70... Rd8 {[%clk 0:00:07.2]} 71. Ke5 {[%clk 0:00:18.2]} 71... Re8+ {[%clk
0:00:07.9]} 72. Kd4 {[%clk 0:00:18]} 72... Re3 {[%clk 0:00:08.5]} 73. Rc3 {[%clk
0:00:17.7]} 73... Rxc3 {[%clk 0:00:08.6]} 74. Kxc3 {[%clk 0:00:19.6]} 74... Bxf3
{[%clk 0:00:10.2]} 75. Bc4 {[%clk 0:00:20.9]} 75... Kf2 {[%clk 0:00:10.3]} 76.
Kd2 {[%clk 0:00:21.9]} 76... Be4 {[%clk 0:00:11]} 77. Be6 {[%clk 0:00:21.2]}
77... Bf3 {[%clk 0:00:11.4]} 78. Bc4 {[%clk 0:00:21.8]} 78... Kg1 {[%clk
0:00:07.8]} 79. Ke1 {[%clk 0:00:21.8]} 79... Be4 {[%clk 0:00:06.8]} 80. Be2
{[%clk 0:00:22.6]} 80... Kg2 {[%clk 0:00:07.4]} 81. Bd1 {[%clk 0:00:23.7]} 81...
Bf3 {[%clk 0:00:08.5]} 82. Bc2 {[%clk 0:00:24.4]} 82... Bg4 {[%clk 0:00:07.6]}
83. Be4+ {[%clk 0:00:25]} 83... Kg1 {[%clk 0:00:08.6]} 84. Bd5 {[%clk
0:00:25.3]} 84... Bh3 {[%clk 0:00:09.4]} 85. Be4 {[%clk 0:00:26]} 85... Bg2
{[%clk 0:00:10.5]} 86. Bd3 {[%clk 0:00:20.2]} 86... f3 {[%clk 0:00:11.7]} 87.
Kd2 {[%clk 0:00:17.3]} 87... f2 {[%clk 0:00:10.1]} 88. Ke3 {[%clk 0:00:17.7]}
88... Bf1 {[%clk 0:00:10.8]} 89. Bf5 {[%clk 0:00:17]} 89... Ba6 {[%clk
0:00:11.4]} 90. Bh3 {[%clk 0:00:13.3]} 90... Bc8 {[%clk 0:00:12]} 91. Bxc8
{[%clk 0:00:08.4]} 91... f1=Q {[%clk 0:00:13.2]} 92. Bg4 {[%clk 0:00:09.6]}
92... Qf2+ {[%clk 0:00:12.6]} 93. Ke4 {[%clk 0:00:10.3]} 93... Kg2 {[%clk
0:00:12.5]} 94. Bf5 {[%clk 0:00:10.4]} 94... Kg3 {[%clk 0:00:13.6]} 95. Ke5
{[%clk 0:00:12.3]} 95... Qf4+ {[%clk 0:00:14.4]} 96. Ke6 {[%clk 0:00:13.5]}
96... Kh4 {[%clk 0:00:15.8]} 97. Bg6 {[%clk 0:00:12.5]} 97... Kg5 {[%clk
0:00:17.4]} 0-1